[Event "The Elitserien 2024/25: round 1 - 3"]
[Site "Scandic Infra City, Kanalvagen 10, Upplands Vasby, Sweden"]
[Date "2024.10.06"]
[Round "3.26"]
[White "Blomqvist, Erik"]
[Black "Danchevski, Orce"]
[Result "1-0"]
[TimeControl "90 minutes for 40 moves + 30 minutes for the rest of the game + 30 seconds per move from move one."]
[WhiteTitle "GM"]
[BlackTitle "IM"]
[WhiteFideId "1709437"]
[BlackFideId "15000311"]
[WhiteElo "2491"]
[BlackElo "2339"]

1. e4 {[%clk 01:30:53]} {[%emt 00:00:03]} c5 {[%clk 01:30:33]} {[%emt
00:00:28]} 2. Nf3 {[%clk 01:31:00]} {[%emt 00:00:24]} d6 {[%clk 01:30:47]}
{[%emt 00:00:15]} 3. d4 {[%clk 01:31:20]} {[%emt 00:00:10]} Nf6 {[%clk
01:30:42]} {[%emt 00:00:34]} 4. Nc3 {[%clk 01:31:40]} {[%emt 00:00:12]} cxd4
{[%clk 01:31:03]} {[%emt 00:00:08]} 5. Nxd4 {[%clk 01:32:00]} {[%emt 00:00:09]}
Nc6 {[%clk 01:31:21]} {[%emt 00:00:13]} 6. Bg5 {[%clk 01:32:20]} {[%emt
00:00:10]} e6 {[%clk 01:30:13]} {[%emt 00:01:37]} 7. Qd3 {[%clk 01:32:14]}
{[%emt 00:00:37]} a6 {[%clk 01:29:22]} {[%emt 00:01:21]} 8. Nxc6 {[%clk
01:32:13]} {[%emt 00:00:31]} bxc6 {[%clk 01:29:06]} {[%emt 00:00:46]} 9. O-O-O
{[%clk 01:32:07]} {[%emt 00:00:36]} Qa5 {[%clk 01:20:52]} {[%emt 00:08:43]} 10.
Qg3 {[%clk 01:17:07]} {[%emt 00:15:31]} Nh5 {[%clk 01:06:16]} {[%emt 00:15:06]}
11. Qh4 {[%clk 00:54:02]} {[%emt 00:23:36]} h6 {[%clk 01:06:16]} {[%emt
00:00:29]} 12. Bd2 {[%clk 00:54:27]} {[%emt 00:00:06]} Be7 {[%clk 00:57:18]}
{[%emt 00:09:27]} 13. Qg4 {[%clk 00:54:33]} {[%emt 00:00:24]} g6 {[%clk
00:49:17]} {[%emt 00:08:31]} 14. Bc4 {[%clk 00:52:59]} {[%emt 00:02:04]} Qc7
{[%clk 00:32:58]} {[%emt 00:16:49]} 15. Rhe1 {[%clk 00:46:15]} {[%emt
00:07:14]} e5 {[%clk 00:24:38]} {[%emt 00:08:50]} 16. Qf3 {[%clk 00:44:37]}
{[%emt 00:02:08]} Be6 {[%clk 00:24:54]} {[%emt 00:00:13]} 17. Bxe6 {[%clk
00:43:09]} {[%emt 00:01:59]} fxe6 {[%clk 00:24:32]} {[%emt 00:00:53]} 18. Qh3
{[%clk 00:37:49]} {[%emt 00:05:49]} Kf7 {[%clk 00:18:12]} {[%emt 00:06:50]} 19.
g3 {[%clk 00:34:40]} {[%emt 00:03:40]} Bf6 {[%clk 00:17:31]} {[%emt 00:01:10]}
20. f4 {[%clk 00:34:20]} {[%emt 00:00:50]} Qe7 {[%clk 00:17:22]} {[%emt
00:00:38]} 21. Rf1 {[%clk 00:31:10]} {[%emt 00:03:41]} Kg7 {[%clk 00:17:38]}
{[%emt 00:00:14]} 22. Qg4 {[%clk 00:28:46]} {[%emt 00:02:55]} Raf8 {[%clk
00:16:28]} {[%emt 00:01:39]} 23. Rf3 {[%clk 00:18:21]} {[%emt 00:10:56]} Rhg8
{[%clk 00:10:30]} {[%emt 00:06:29]} 24. Rd3 {[%clk 00:17:23]} {[%emt 00:01:29]}
d5 {[%clk 00:10:11]} {[%emt 00:00:47]} 25. fxe5 {[%clk 00:15:42]} {[%emt
00:02:12]} Bxe5 {[%clk 00:08:51]} {[%emt 00:01:50]} 26. exd5 {[%clk 00:15:57]}
{[%emt 00:00:14]} exd5 {[%clk 00:08:56]} {[%emt 00:00:24]} 27. Re1 {[%clk
00:15:44]} {[%emt 00:00:42]} Qc7 {[%clk 00:08:18]} {[%emt 00:01:09]} 28. Nxd5
{[%clk 00:12:22]} {[%emt 00:03:52]} Bxb2+ {[%clk 00:07:19]} {[%emt 00:01:29]}
29. Kxb2 {[%clk 00:12:45]} {[%emt 00:00:07]} cxd5 {[%clk 00:07:46]} {[%emt
00:00:04]} 30. Re6 {[%clk 00:12:04]} {[%emt 00:01:10]} Kh7 {[%clk 00:06:52]}
{[%emt 00:01:24]} 31. Rb3 {[%clk 00:10:39]} {[%emt 00:01:55]} Rf6 {[%clk
00:02:36]} {[%emt 00:04:46]} 32. Bc3 {[%clk 00:09:44]} {[%emt 00:01:25]} Rxe6
{[%clk 00:00:41]} {[%emt 00:02:25]} 33. Qxe6 {[%clk 00:10:10]} {[%emt
00:00:04]} Rd8 {[%clk 00:01:01]} {[%emt 00:00:10]} 34. Rb6 {[%clk 00:08:36]}
{[%emt 00:02:05]} d4 {[%clk 00:01:22]} {[%emt 00:00:08]} 35. Qxg6+ {[%clk
00:08:38]} {[%emt 00:00:27]} Kh8 {[%clk 00:01:49]} {[%emt 00:00:05]} 36. Qxh6+
{[%clk 00:08:48]} {[%emt 00:00:19]} Kg8 {[%clk 00:02:15]} {[%emt 00:00:04]} 37.
Qe6+ {[%clk 00:08:46]} {[%emt 00:00:32]} 1-0

[Event "The Elitserien 2024/25: round 1 - 3"]
[Site "Scandic Infra City, Kanalvagen 10, Upplands Vasby, Sweden"]
[Date "2024.10.06"]
[Round "3.27"]
[White "Gdanski, Jacek"]
[Black "Hammer, Jon Ludvig"]
[Result "0-1"]
[TimeControl "90 minutes for 40 moves + 30 minutes for the rest of the game + 30 seconds per move from move one."]
[WhiteTitle "GM"]
[BlackTitle "GM"]
[WhiteFideId "1100106"]
[BlackFideId "1503707"]
[WhiteElo "2482"]
[BlackElo "2595"]

1. Nf3 {[%clk 01:28:43]} {[%emt 00:00:25]} d5 {[%clk 01:30:12]} {[%emt
00:00:49]} 2. c4 {[%clk 01:29:07]} {[%emt 00:00:06]} e6 {[%clk 01:27:23]}
{[%emt 00:03:18]} 3. g3 {[%clk 01:28:43]} {[%emt 00:00:54]} d4 {[%clk
01:24:50]} {[%emt 00:03:03]} 4. Bg2 {[%clk 01:28:48]} {[%emt 00:00:24]} Nc6
{[%clk 01:23:16]} {[%emt 00:02:05]} 5. O-O {[%clk 01:28:59]} {[%emt 00:00:20]}
Bc5 {[%clk 01:15:50]} {[%emt 00:07:55]} 6. d3 {[%clk 01:19:16]} {[%emt
00:10:14]} Nge7 {[%clk 01:10:51]} {[%emt 00:05:29]} 7. Na3 {[%clk 01:14:02]}
{[%emt 00:05:44]} O-O {[%clk 01:10:28]} {[%emt 00:00:54]} 8. Nc2 {[%clk
01:14:26]} {[%emt 00:00:05]} a5 {[%clk 01:05:36]} {[%emt 00:05:23]} 9. b3
{[%clk 01:14:01]} {[%emt 00:00:54]} Nb4 {[%clk 00:55:54]} {[%emt 00:10:13]} 10.
Nfe1 {[%clk 00:56:03]} {[%emt 00:18:28]} e5 {[%clk 00:55:40]} {[%emt 00:00:44]}
11. a3 {[%clk 00:56:28]} {[%emt 00:00:05]} Nxc2 {[%clk 00:55:32]} {[%emt
00:00:37]} 12. Nxc2 {[%clk 00:56:51]} {[%emt 00:00:07]} c6 {[%clk 00:49:54]}
{[%emt 00:06:09]} 13. Bd2 {[%clk 00:51:28]} {[%emt 00:05:50]} Bg4 {[%clk
00:50:17]} {[%emt 00:00:08]} 14. h3 {[%clk 00:51:15]} {[%emt 00:00:44]} Bh5
{[%clk 00:50:38]} {[%emt 00:00:08]} 15. b4 {[%clk 00:48:13]} {[%emt 00:03:33]}
Bb6 {[%clk 00:50:51]} {[%emt 00:00:17]} 16. bxa5 {[%clk 00:44:56]} {[%emt
00:03:47]} Bxa5 {[%clk 00:51:04]} {[%emt 00:00:16]} 17. Rb1 {[%clk 00:45:22]}
{[%emt 00:00:05]} Ra7 {[%clk 00:44:01]} {[%emt 00:07:33]} 18. Qe1 {[%clk
00:41:24]} {[%emt 00:04:27]} Bb6 {[%clk 00:36:15]} {[%emt 00:08:16]} 19. g4
{[%clk 00:37:56]} {[%emt 00:03:59]} Bg6 {[%clk 00:36:41]} {[%emt 00:00:03]} 20.
f4 {[%clk 00:38:21]} {[%emt 00:00:05]} exf4 {[%clk 00:34:42]} {[%emt 00:02:29]}
21. Bxf4 {[%clk 00:38:10]} {[%emt 00:00:40]} Bc5 {[%clk 00:32:10]} {[%emt
00:03:04]} 22. Qg3 {[%clk 00:33:27]} {[%emt 00:05:12]} Qd7 {[%clk 00:32:34]}
{[%emt 00:00:07]} 23. Rb3 {[%clk 00:30:55]} {[%emt 00:03:02]} Qe6 {[%clk
00:14:59]} {[%emt 00:18:05]} 24. Be5 {[%clk 00:19:49]} {[%emt 00:11:35]} Rd8
{[%clk 00:15:19]} {[%emt 00:00:11]} 25. Qf4 {[%clk 00:15:59]} {[%emt 00:04:19]}
Bxd3 {[%clk 00:10:21]} {[%emt 00:05:29]} 26. Bxd4 {[%clk 00:01:59]} {[%emt
00:14:29]} Bxc2 {[%clk 00:08:31]} {[%emt 00:02:20]} 27. Bxc5 {[%clk 00:01:39]}
{[%emt 00:00:50]} Bxb3 {[%clk 00:08:55]} {[%emt 00:00:06]} 28. Bxa7 {[%clk
00:02:02]} {[%emt 00:00:08]} Bxc4 {[%clk 00:08:52]} {[%emt 00:00:32]} 29. Rf2
{[%clk 00:00:40]} {[%emt 00:01:52]} h6 {[%clk 00:08:27]} {[%emt 00:00:57]} 30.
Bf3 {[%clk 00:00:51]} {[%emt 00:00:18]} Ng6 {[%clk 00:08:10]} {[%emt 00:00:46]}
31. Qc7 {[%clk 00:01:17]} {[%emt 00:00:04]} Rd7 {[%clk 00:07:38]} {[%emt
00:01:02]} 32. Qg3 {[%clk 00:00:48]} {[%emt 00:00:58]} Qe7 {[%clk 00:06:04]}
{[%emt 00:02:05]} 33. a4 {[%clk 00:00:46]} {[%emt 00:00:32]} b5 {[%clk
00:04:52]} {[%emt 00:01:42]} 34. Bb8 {[%clk 00:00:37]} {[%emt 00:00:40]} bxa4
{[%clk 00:04:54]} {[%emt 00:00:28]} 35. Bxc6 {[%clk 00:01:00]} {[%emt
00:00:07]} Rd1+ {[%clk 00:05:09]} {[%emt 00:00:13]} 36. Kh2 {[%clk 00:01:27]}
{[%emt 00:00:05]} a3 {[%clk 00:05:16]} {[%emt 00:00:22]} 37. Qc3 {[%clk
00:00:39]} {[%emt 00:01:18]} Qc5 {[%clk 00:03:39]} {[%emt 00:02:07]} 0-1

[Event "The Elitserien 2024/25: round 1 - 3"]
[Site "Scandic Infra City, Kanalvagen 10, Upplands Vasby, Sweden"]
[Date "2024.10.06"]
[Round "3.28"]
[White "Seo, Jung Min"]
[Black "Malesevic, Nedeljko"]
[Result "1-0"]
[TimeControl "90 minutes for 40 moves + 30 minutes for the rest of the game + 30 seconds per move from move one."]
[WhiteTitle "IM"]
[BlackTitle "FM"]
[WhiteFideId "1734687"]
[BlackFideId "1703447"]
[WhiteElo "2505"]
[BlackElo "2230"]

1. c4 {[%clk 01:28:25]} {[%emt 00:02:34]} c6 {[%clk 01:30:45]} {[%emt
00:00:14]} 2. Nf3 {[%clk 01:27:23]} {[%emt 00:01:32]} d5 {[%clk 01:31:00]}
{[%emt 00:00:16]} 3. e3 {[%clk 01:27:51]} {[%emt 00:00:03]} Nf6 {[%clk
01:31:08]} {[%emt 00:00:21]} 4. Nc3 {[%clk 01:25:37]} {[%emt 00:02:45]} e6
{[%clk 01:28:59]} {[%emt 00:02:37]} 5. d4 {[%clk 01:25:08]} {[%emt 00:01:01]}
Nbd7 {[%clk 01:27:54]} {[%emt 00:01:35]} 6. Qc2 {[%clk 01:25:32]} {[%emt
00:00:05]} Be7 {[%clk 01:25:28]} {[%emt 00:02:56]} 7. b3 {[%clk 01:13:47]}
{[%emt 00:12:15]} O-O {[%clk 01:16:18]} {[%emt 00:09:40]} 8. Bd3 {[%clk
01:12:22]} {[%emt 00:01:55]} Re8 {[%clk 01:13:35]} {[%emt 00:03:14]} 9. O-O
{[%clk 01:11:50]} {[%emt 00:01:02]} dxc4 {[%clk 01:08:57]} {[%emt 00:05:08]} 10.
bxc4 {[%clk 01:11:58]} {[%emt 00:00:22]} Qc7 {[%clk 01:03:09]} {[%emt
00:06:17]} 11. Bb2 {[%clk 01:08:20]} {[%emt 00:04:08]} Bd6 {[%clk 00:51:46]}
{[%emt 00:11:53]} 12. h3 {[%clk 01:03:30]} {[%emt 00:05:20]} b6 {[%clk
00:47:57]} {[%emt 00:04:19]} 13. Ng5 {[%clk 00:51:50]} {[%emt 00:12:10]} h6
{[%clk 00:40:55]} {[%emt 00:07:33]} 14. Nge4 {[%clk 00:52:13]} {[%emt
00:00:06]} Be7 {[%clk 00:40:41]} {[%emt 00:00:45]} 15. Nxf6+ {[%clk 00:50:26]}
{[%emt 00:02:17]} Nxf6 {[%clk 00:38:56]} {[%emt 00:02:14]} 16. e4 {[%clk
00:50:13]} {[%emt 00:00:43]} Rd8 {[%clk 00:24:38]} {[%emt 00:14:48]} 17. e5
{[%clk 00:48:43]} {[%emt 00:01:59]} Ne8 {[%clk 00:24:28]} {[%emt 00:00:40]} 18.
Rad1 {[%clk 00:45:35]} {[%emt 00:03:38]} Bb7 {[%clk 00:22:20]} {[%emt
00:02:39]} 19. f4 {[%clk 00:41:30]} {[%emt 00:04:35]} Bf8 {[%clk 00:18:17]}
{[%emt 00:04:32]} 20. f5 {[%clk 00:39:02]} {[%emt 00:02:58]} exf5 {[%clk
00:12:10]} {[%emt 00:06:39]} 21. Bxf5 {[%clk 00:39:23]} {[%emt 00:00:09]} Qe7
{[%clk 00:11:06]} {[%emt 00:01:33]} 22. Ne4 {[%clk 00:32:20]} {[%emt 00:07:33]}
Bc8 {[%clk 00:04:57]} {[%emt 00:06:39]} 23. d5 {[%clk 00:26:41]} {[%emt
00:06:09]} cxd5 {[%clk 00:04:40]} {[%emt 00:00:49]} 24. cxd5 {[%clk 00:27:08]}
{[%emt 00:00:02]} Bxf5 {[%clk 00:04:00]} {[%emt 00:01:10]} 25. Rxf5 {[%clk
00:27:33]} {[%emt 00:00:05]} g6 {[%clk 00:03:53]} {[%emt 00:00:36]} 26. Rf3
{[%clk 00:22:58]} {[%emt 00:05:04]} Bg7 {[%clk 00:02:51]} {[%emt 00:01:33]} 27.
Rdf1 {[%clk 00:21:59]} {[%emt 00:01:28]} Rac8 {[%clk 00:01:40]} {[%emt
00:01:42]} 28. Qb3 {[%clk 00:21:48]} {[%emt 00:00:42]} Qh4 {[%clk 00:01:15]}
{[%emt 00:00:55]} 29. Rf4 {[%clk 00:21:55]} {[%emt 00:00:22]} Qh5 {[%clk
00:01:14]} {[%emt 00:00:31]} 30. d6 {[%clk 00:21:51]} {[%emt 00:00:33]} Bxe5
{[%clk 00:00:34]} {[%emt 00:01:11]} 31. Qxf7+ {[%clk 00:21:50]} {[%emt
00:00:32]} Kh8 {[%clk 00:01:02]} {[%emt 00:00:01]} 32. Bxe5+ {[%clk 00:21:11]}
{[%emt 00:01:09]} Qxe5 {[%clk 00:01:27]} {[%emt 00:00:05]} 33. Qxg6 {[%clk
00:21:10]} {[%emt 00:00:32]} Ng7 {[%clk 00:00:31]} {[%emt 00:01:27]} 34. Qxh6+
{[%clk 00:21:25]} {[%emt 00:00:14]} 1-0

[Event "The Elitserien 2024/25: round 1 - 3"]
[Site "Scandic Infra City, Kanalvagen 10, Upplands Vasby, Sweden"]
[Date "2024.10.06"]
[Round "3.29"]
[White "Vernersson, Per"]
[Black "Sorensen, Hampus"]
[Result "1/2-1/2"]
[TimeControl "90 minutes for 40 moves + 30 minutes for the rest of the game + 30 seconds per move from move one."]
[BlackTitle "IM"]
[WhiteFideId "1700863"]
[BlackFideId "8703884"]
[WhiteElo "2256"]
[BlackElo "2420"]

1. Nf3 {[%clk 01:30:54]} {[%emt 00:00:05]} Nf6 {[%clk 01:30:14]} {[%emt
00:00:46]} 2. c4 {[%clk 01:30:32]} {[%emt 00:00:52]} e6 {[%clk 01:30:00]}
{[%emt 00:00:43]} 3. d4 {[%clk 01:30:34]} {[%emt 00:00:27]} d5 {[%clk
01:29:02]} {[%emt 00:01:29]} 4. Nc3 {[%clk 01:29:32]} {[%emt 00:01:32]} c6
{[%clk 01:26:23]} {[%emt 00:03:08]} 5. e3 {[%clk 01:28:31]} {[%emt 00:01:31]}
a6 {[%clk 01:26:16]} {[%emt 00:00:39]} 6. a3 {[%clk 01:24:30]} {[%emt
00:04:31]} Nbd7 {[%clk 01:21:45]} {[%emt 00:05:01]} 7. Qc2 {[%clk 01:22:32]}
{[%emt 00:02:27]} Bd6 {[%clk 01:19:42]} {[%emt 00:02:34]} 8. e4 {[%clk
01:17:21]} {[%emt 00:05:41]} dxe4 {[%clk 00:53:35]} {[%emt 00:26:38]} 9. Nxe4
{[%clk 01:17:40]} {[%emt 00:00:09]} Be7 {[%clk 00:53:50]} {[%emt 00:00:15]} 10.
Be2 {[%clk 01:13:02]} {[%emt 00:05:07]} c5 {[%clk 00:52:37]} {[%emt 00:01:44]}
11. Nxc5 {[%clk 01:11:06]} {[%emt 00:02:26]} Nxc5 {[%clk 00:52:52]} {[%emt
00:00:16]} 12. dxc5 {[%clk 01:11:26]} {[%emt 00:00:10]} Bxc5 {[%clk 00:53:16]}
{[%emt 00:00:06]} 13. b4 {[%clk 01:11:00]} {[%emt 00:00:56]} Be7 {[%clk
00:53:18]} {[%emt 00:00:29]} 14. Bb2 {[%clk 01:10:14]} {[%emt 00:01:16]} Bd7
{[%clk 00:49:25]} {[%emt 00:04:23]} 15. O-O {[%clk 01:06:04]} {[%emt 00:04:39]}
Qc7 {[%clk 00:45:18]} {[%emt 00:04:37]} 16. Be5 {[%clk 00:57:13]} {[%emt
00:09:21]} Bd6 {[%clk 00:41:19]} {[%emt 00:04:31]} 17. Bxd6 {[%clk 00:54:10]}
{[%emt 00:03:32]} Qxd6 {[%clk 00:41:45]} {[%emt 00:00:05]} 18. Rad1 {[%clk
00:54:22]} {[%emt 00:00:16]} Qc7 {[%clk 00:41:28]} {[%emt 00:00:47]} 19. Qb3
{[%clk 00:46:38]} {[%emt 00:08:14]} O-O {[%clk 00:39:20]} {[%emt 00:02:38]} 20.
Rfe1 {[%clk 00:39:26]} {[%emt 00:07:42]} Rfd8 {[%clk 00:37:43]} {[%emt
00:02:09]} 21. h3 {[%clk 00:35:53]} {[%emt 00:04:01]} h6 {[%clk 00:35:02]}
{[%emt 00:03:13]} 22. Rd2 {[%clk 00:31:02]} {[%emt 00:05:20]} Bc6 {[%clk
00:34:05]} {[%emt 00:01:26]} 23. Red1 {[%clk 00:30:57]} {[%emt 00:00:34]} Ne4
{[%clk 00:28:33]} {[%emt 00:06:02]} 24. Rxd8+ {[%clk 00:30:32]} {[%emt
00:00:56]} Rxd8 {[%clk 00:28:58]} {[%emt 00:00:05]} 25. Rxd8+ {[%clk 00:29:19]}
{[%emt 00:01:43]} Qxd8 {[%clk 00:29:27]} {[%emt 00:00:02]} 26. Qe3 {[%clk
00:28:33]} {[%emt 00:01:15]} Nf6 {[%clk 00:26:01]} {[%emt 00:03:57]} 27. Qd4
{[%clk 00:26:10]} {[%emt 00:02:52]} 1/2-1/2

[Event "The Elitserien 2024/25: round 1 - 3"]
[Site "Scandic Infra City, Kanalvagen 10, Upplands Vasby, Sweden"]
[Date "2024.10.06"]
[Round "3.30"]
[White "Trost, Edvin"]
[Black "Thornert, Hakan"]
[Result "1/2-1/2"]
[TimeControl "90 minutes for 40 moves + 30 minutes for the rest of the game + 30 seconds per move from move one."]
[WhiteTitle "IM"]
[WhiteFideId "1729519"]
[BlackFideId "1703749"]
[WhiteElo "2433"]
[BlackElo "2163"]

1. d4 {[%clk 01:26:24]} {[%emt 00:04:34]} Nf6 {[%clk 01:30:25]} {[%emt
00:00:35]} 2. c4 {[%clk 01:26:16]} {[%emt 00:00:39]} g6 {[%clk 01:30:50]}
{[%emt 00:00:04]} 3. Nc3 {[%clk 01:26:45]} {[%emt 00:00:01]} d5 {[%clk
01:31:13]} {[%emt 00:00:07]} 4. Bg5 {[%clk 01:27:14]} {[%emt 00:00:01]} Ne4
{[%clk 01:31:08]} {[%emt 00:00:34]} 5. Bf4 {[%clk 01:27:30]} {[%emt 00:00:15]}
Nxc3 {[%clk 01:30:54]} {[%emt 00:00:43]} 6. bxc3 {[%clk 01:27:58]} {[%emt
00:00:02]} dxc4 {[%clk 01:31:07]} {[%emt 00:00:16]} 7. e3 {[%clk 01:27:01]}
{[%emt 00:01:28]} Be6 {[%clk 01:31:21]} {[%emt 00:00:17]} 8. Be5 {[%clk
01:15:00]} {[%emt 00:12:30]} f6 {[%clk 01:29:55]} {[%emt 00:01:56]} 9. Bg3
{[%clk 01:14:53]} {[%emt 00:00:38]} c6 {[%clk 01:28:30]} {[%emt 00:01:55]} 10.
Nf3 {[%clk 01:10:31]} {[%emt 00:04:51]} Nd7 {[%clk 01:25:44]} {[%emt 00:03:16]}
11. Be2 {[%clk 01:07:44]} {[%emt 00:03:16]} b5 {[%clk 01:21:34]} {[%emt
00:04:40]} 12. h4 {[%clk 01:03:18]} {[%emt 00:04:56]} Qa5 {[%clk 01:17:19]}
{[%emt 00:04:45]} 13. O-O {[%clk 00:56:01]} {[%emt 00:07:48]} Nb6 {[%clk
01:11:20]} {[%emt 00:06:28]} 14. Qc2 {[%clk 00:50:13]} {[%emt 00:06:18]} Na4
{[%clk 01:06:09]} {[%emt 00:05:41]} 15. Rac1 {[%clk 00:48:48]} {[%emt
00:01:55]} Bh6 {[%clk 00:56:29]} {[%emt 00:10:09]} 16. h5 {[%clk 00:45:09]}
{[%emt 00:04:09]} Bf5 {[%clk 00:54:51]} {[%emt 00:02:09]} 17. Qd2 {[%clk
00:45:37]} {[%emt 00:00:02]} g5 {[%clk 00:51:53]} {[%emt 00:03:28]} 18. d5
{[%clk 00:36:54]} {[%emt 00:09:13]} Qd8 {[%clk 00:37:13]} {[%emt 00:15:09]} 19.
d6 {[%clk 00:18:41]} {[%emt 00:18:44]} e5 {[%clk 00:37:28]} {[%emt 00:00:15]}
20. e4 {[%clk 00:12:21]} {[%emt 00:06:51]} Bxe4 {[%clk 00:33:43]} {[%emt
00:04:14]} 21. Nh2 {[%clk 00:12:43]} {[%emt 00:00:07]} O-O {[%clk 00:29:37]}
{[%emt 00:04:38]} 22. Ng4 {[%clk 00:11:12]} {[%emt 00:02:00]} Bg7 {[%clk
00:29:50]} {[%emt 00:00:16]} 23. h6 {[%clk 00:10:34]} {[%emt 00:01:10]} Bh8
{[%clk 00:29:51]} {[%emt 00:00:27]} 24. Rfe1 {[%clk 00:06:22]} {[%emt
00:04:44]} Bd5 {[%clk 00:30:03]} {[%emt 00:00:18]} 25. Ne3 {[%clk 00:06:10]}
{[%emt 00:00:42]} Qxd6 {[%clk 00:29:57]} {[%emt 00:00:36]} 26. Nf5 {[%clk
00:06:39]} Qc7 {[%clk 00:26:15]} {[%emt 00:04:12]} 27. Bh5 {[%clk 00:05:35]}
{[%emt 00:01:34]} Rae8 {[%clk 00:22:16]} {[%emt 00:04:29]} 28. Bxe8 {[%clk
00:01:36]} {[%emt 00:04:30]} Rxe8 {[%clk 00:22:40]} {[%emt 00:00:06]} 29. Red1
{[%clk 00:00:37]} {[%emt 00:01:28]} Nc5 {[%clk 00:22:32]} {[%emt 00:00:38]} 30.
Ra1 {[%clk 00:01:07]} a5 {[%clk 00:09:48]} {[%emt 00:13:13]} 31. Qe3 {[%clk
00:01:31]} {[%emt 00:00:07]} Nd3 {[%clk 00:09:50]} {[%emt 00:00:27]} 32. a4
{[%clk 00:00:52]} {[%emt 00:01:09]} b4 {[%clk 00:09:58]} {[%emt 00:00:23]} 33.
cxb4 {[%clk 00:01:21]} {[%emt 00:00:02]} axb4 {[%clk 00:10:18]} {[%emt
00:00:09]} 34. a5 {[%clk 00:01:50]} Qd7 {[%clk 00:09:18]} {[%emt 00:01:30]} 35.
Ng7 {[%clk 00:01:55]} {[%emt 00:00:25]} Bxg7 {[%clk 00:09:32]} {[%emt
00:00:17]} 36. hxg7 {[%clk 00:02:24]} {[%emt 00:00:02]} c5 {[%clk 00:06:14]}
{[%emt 00:03:46]} 37. a6 {[%clk 00:01:38]} {[%emt 00:01:16]} Qc6 {[%clk
00:06:16]} {[%emt 00:00:28]} 38. f3 {[%clk 00:01:20]} {[%emt 00:00:49]} Ra8
{[%clk 00:06:09]} {[%emt 00:00:36]} 39. a7 {[%clk 00:01:08]} {[%emt 00:00:44]}
b3 {[%clk 00:05:44]} {[%emt 00:00:55]} 40. Be1 {[%clk 00:00:32]} {[%emt
00:01:07]} Qb6 {[%clk 00:01:11]} {[%emt 00:05:00]} 41. Bc3 {[%clk 00:00:31]}
{[%emt 00:00:32]} Rxa7 {[%clk 00:00:43]} {[%emt 00:00:58]} 42. Rxa7 {[%clk
00:30:06]} {[%emt 00:00:56]} Qxa7 {[%clk 00:30:53]} {[%emt 00:00:21]} 43. Ra1
{[%clk 00:29:53]} {[%emt 00:00:43]} Qb6 {[%clk 00:30:22]} {[%emt 00:01:00]} 44.
Qd2 {[%clk 00:28:29]} {[%emt 00:01:54]} Kxg7 {[%clk 00:29:51]} {[%emt
00:01:01]} 45. Kh2 {[%clk 00:27:23]} {[%emt 00:01:36]} h5 {[%clk 00:29:57]}
{[%emt 00:00:24]} 46. Kg1 {[%clk 00:27:16]} {[%emt 00:00:37]} h4 {[%clk
00:30:14]} {[%emt 00:00:14]} 47. Kh2 {[%clk 00:27:31]} {[%emt 00:00:14]} Qb7
{[%clk 00:28:07]} {[%emt 00:02:32]} 48. Qe3 {[%clk 00:26:41]} {[%emt 00:01:25]}
Kg6 {[%clk 00:24:43]} {[%emt 00:03:52]} 49. Rf1 {[%clk 00:23:37]} {[%emt
00:03:35]} Qa8 {[%clk 00:22:24]} {[%emt 00:02:48]} 50. Ra1 {[%clk 00:23:50]}
{[%emt 00:00:17]} Qc6 {[%clk 00:22:32]} {[%emt 00:00:23]} 51. Qd2 {[%clk
00:20:31]} {[%emt 00:03:49]} Be6 {[%clk 00:21:46]} {[%emt 00:01:16]} 52. Qd1
{[%clk 00:16:51]} {[%emt 00:04:12]} Bf5 {[%clk 00:20:25]} {[%emt 00:01:49]} 53.
Ra3 {[%clk 00:15:37]} {[%emt 00:01:44]} Qb7 {[%clk 00:18:14]} {[%emt 00:02:40]}
54. Qa1 {[%clk 00:16:05]} {[%emt 00:00:05]} b2 {[%clk 00:16:54]} {[%emt
00:01:50]} 55. Qb1 {[%clk 00:16:20]} {[%emt 00:00:14]} h3 {[%clk 00:15:28]}
{[%emt 00:01:57]} 56. g4 {[%clk 00:09:03]} {[%emt 00:07:48]} Bxg4 {[%clk
00:14:12]} {[%emt 00:01:43]} 57. Bxb2 {[%clk 00:08:55]} {[%emt 00:00:41]} Qxf3
{[%clk 00:13:53]} {[%emt 00:00:48]} 58. Qg1 {[%clk 00:09:23]} {[%emt 00:00:01]}
Qe2+ {[%clk 00:11:20]} {[%emt 00:03:03]} 59. Kg3 {[%clk 00:09:52]} Qxb2 {[%clk
00:10:34]} {[%emt 00:01:16]} 60. Ra6 {[%clk 00:08:57]} {[%emt 00:01:24]} Qe2
{[%clk 00:10:06]} {[%emt 00:00:56]} 61. Rd6 {[%clk 00:08:27]} {[%emt 00:01:05]}
Nf4 {[%clk 00:09:12]} {[%emt 00:01:22]} 62. Qb1+ {[%clk 00:08:19]} {[%emt
00:00:37]} e4 {[%clk 00:07:06]} {[%emt 00:02:36]} 63. Rxf6+ {[%clk 00:07:42]}
{[%emt 00:01:09]} Kxf6 {[%emt 00:03:35]} 64. Qb6+ {[%clk 00:07:32]} {[%emt
00:00:26]} Be6 {[%clk 00:01:55]} {[%emt 00:02:49]} 65. Qd8+ {[%clk 00:08:01]}
{[%emt 00:00:03]} Ke5 {[%clk 00:01:23]} {[%emt 00:01:02]} 66. Qd4+ {[%clk
00:08:11]} {[%emt 00:00:20]} Kf5 {[%clk 00:01:20]} {[%emt 00:00:29]} 67. Qf6+
{[%clk 00:08:38]} {[%emt 00:00:06]} Kxf6 {[%clk 00:01:21]} {[%emt 00:00:27]}
1/2-1/2